fUSD/lending_fUSD_20240613
["ID","MTS","AMOUNT","RATE_DAILY","PERIOD"]
[329387001,1718310651781,-1658.0,0.000157,2]
[329387002,1718310651799,-1195.0,0.000157,2]
[329387003,1718310651814,-194.978,0.000157,2]
[329387004,1718310651828,-250.0,0.00015705,2]
[329387005,1718310651843,-225.29,0.00015798,2]
[329387006,1718310651858,-167.24,0.00015831,2]
[329387007,1718310651870,-152.151883,0.0001589,2]
[329387008,1718310651897,-172.53,0.00015941,2]
[329387009,1718310651913,-526.76,0.00016027,2]
[329387010,1718310651938,-526.76,0.00016027,2]
[329387011,1718310651953,-526.76,0.00016027,2]
[329387012,1718310651974,-526.76,0.00016027,2]
[329387013,1718310651993,-526.76,0.00016027,2]
[329387014,1718310652004,-375.85,0.00016027,2]
[329387015,1718310652019,-191.01,0.00016152,2]
[329387016,1718310652036,-4324.25013671,0.00016169,2]
[329387017,1718310652047,-1140.48017444,0.00016264,2]
[329387018,1718310652071,-151.0,0.00016438,2]
[329387019,1718310652114,-151.0,0.00016438,2]
[329387020,1718310652124,-175.1,0.0001645,2]
[329387021,1718310652173,-152.151883,0.00016712,2]
[329387022,1718310652186,-1050.6,0.00016935,2]
[329387023,1718310652197,-1101.8211374,0.00016954,2]
[329387024,1718310652210,-191.01,0.0001696,2]
[329387025,1718310652221,-225.29,0.00017168,2]
[329387026,1718310652241,-151.0,0.000172,2]
[329387027,1718310652268,-150.468,0.000172,2]
[329387028,1718310652308,-150.43,0.000172,2]
[329387029,1718310652318,-150.461,0.000172,2]
[329387030,1718310652328,-390.59,0.00017214,2]
[329387031,1718310652358,-1000.0,0.0001742,2]
[329387032,1718310652379,-152.151883,0.00017534,2]
[329387033,1718310652392,-1140.48017444,0.00017627,2]
[329387034,1718310652403,-191.01,0.00017767,2]
[329387035,1718310652415,-1112.78581473,0.00018,2]
[329387036,1718310652425,-3084.0,0.000183,2]
[329387037,1718310652437,-552.0,0.000183,2]
[329387038,1718310652578,-152.151883,0.00018356,2]
[329387039,1718310652591,-500.0,0.000185,2]
[329387040,1718310652603,-191.01,0.00018575,2]
[329387041,1718310652620,-150.359,0.00018576,2]
[329387042,1718310652635,-901.893,0.000187,2]
[329387043,1718310652646,-772.965,0.000187,2]
[329387044,1718310652660,-5158.0,0.000187,2]
[329387045,1718310652672,-1269.0,0.000187,2]
[329387046,1718310652684,-38070.0,0.000187,2]
[329387047,1718310652704,-1658.0,0.000187,2]
[329387048,1718310652714,-1195.0,0.000187,2]
[329387049,1718310652730,-1140.48017444,0.00018991,2]
[329387050,1718310652742,-411.95127253,0.00019,2]
[329387051,1718310652756,-155.69611102,0.00019,2]
[329387052,1718310652776,-156.03888376,0.00019,2]
[329387053,1718310652789,-1101.8211374,0.00019108,2]
[329387054,1718310652806,-1000.0,0.00019162,2]
[329387055,1718310652828,-175.1,0.00019165,2]
[329387056,1718310652839,-500.0,0.00019178,2]
[329387057,1718310652852,-500.0,0.00019178,2]
[329387058,1718310652864,-500.0,0.00019178,2]
[329387059,1718310652877,-512.14484611,0.00019178,2]
[329387060,1718310652888,-500.0,0.00019178,2]
[329387061,1718310652899,-500.0,0.00019178,2]
[329387062,1718310652916,-550.76357164,0.00019178,2]
[329387063,1718310652930,-434.11204265,0.00019178,2]
[329387064,1718310652952,-527.04105074,0.00019178,2]
[329387065,1718310652962,-506.04108452,0.00019178,2]
[329387066,1718310652974,-500.0,0.00019178,2]
[329387067,1718310652986,-179.78747295,0.00019178,2]
[329387068,1718310652996,-418.79539966,0.00019178,2]
[329387069,1718310653009,-500.0,0.00019178,2]
[329387070,1718310653021,-500.0,0.00019178,2]
[329387071,1718310653037,-500.0,0.00019178,2]
[329387072,1718310653048,-500.0,0.00019178,2]
[329387073,1718310653065,-500.0,0.00019178,2]
[329387074,1718310653078,-634.5767468,0.00019178,2]
[329387075,1718310653099,-500.0,0.00019178,2]
[329387076,1718310653127,-500.0,0.00019178,2]
[329387077,1718310653155,-500.0,0.00019178,2]
[329387078,1718310653171,-320.46391213,0.00019178,2]
[329387079,1718310653192,-514.48145125,0.00019178,2]
[329387080,1718310653204,-417.52800382,0.00019178,2]
[329387081,1718310653218,-459.9770888,0.00019178,2]
[329387082,1718310653230,-455.94429013,0.00019178,2]
[329387083,1718310653241,-632.4545019,0.00019178,2]
[329387084,1718310653252,-620.69950618,0.00019178,2]
[329387085,1718310653265,-500.0,0.00019178,2]
[329387086,1718310653276,-500.0,0.00019178,2]
[329387087,1718310653286,-500.0,0.00019178,2]
[329387088,1718310653296,-266.01407407,0.00019178,2]
[329387089,1718310653307,-500.0,0.00019178,2]
[329387090,1718310653318,-500.0,0.00019178,2]
[329387091,1718310653328,-250.0,0.00019178,2]
[329387092,1718310653341,-500.0,0.00019178,2]
[329387093,1718310653376,-534.12,0.00019178,2]
[329387094,1718310653387,-500.0,0.00019178,2]
[329387095,1718310653398,-500.0,0.00019178,2]
[329387096,1718310653425,-384.92611895,0.00019178,2]
[329387097,1718310653436,-500.0,0.00019178,2]
[329387098,1718310653450,-500.0,0.00019178,2]
[329387099,1718310653461,-500.0,0.00019178,2]
[329387100,1718310653471,-389.92307299,0.00019178,2]
[329387101,1718310653482,-361.81640691,0.00019178,2]
[329387102,1718310653493,-500.0,0.00019178,2]
[329387103,1718310653509,-429.51916547,0.00019178,2]
[329387104,1718310653527,-500.0,0.00019178,2]
[329387105,1718310653538,-540.65859384,0.00019178,2]
[329387106,1718310653551,-262.97091763,0.00019178,2]
[329387107,1718310653562,-152.151883,0.00019178,2]
[329387108,1718310653573,-191.01,0.00019382,2]
[329387109,1718310653583,-390.59,0.00019478,2]
[329387110,1718310653597,-797.47711022,0.000195,2]
[329387111,1718310653608,-1050.6,0.00019674,2]
[329387112,1718310653619,-4002.24500117,0.000199,3]
[329387113,1718310653631,-449.94,0.00019964,2]
[329387114,1718310653642,-155.0,0.0002,2]
[329387115,1718310653653,-187.783832,0.0002,2]
[329387116,1718310653664,-865.52345367,0.0002,2]
[329387117,1718310653674,-155.0,0.0002,2]
[329387118,1718310653685,-155.0,0.0002,2]
[329387119,1718310653697,-6283.71863153,0.0002,2]
[329387120,1718310653710,-1291.62972997,0.0002,2]
[329387121,1718310653722,-1780.9840789,0.0002,2]
[329387122,1718310653736,-156.46527069,0.0002,4]
[329387123,1718310653746,-3896.31762119,0.0002,2]
[329387124,1718310653777,-155.0,0.0002,2]
[329387125,1718310653789,-156.25436202,0.0002,2]
[329387126,1718310653800,-1761.06242246,0.0002,2]
[329387127,1718310653819,-7516.31301777,0.0002,2]
[329387128,1718310653831,-510.21195869,0.0002,2]
[329387129,1718310653853,-684.26472482,0.0002,2]
[329387130,1718310653875,-305.0,0.0002,2]
[329387131,1718310653892,-213.0,0.0002,2]
[329387132,1718310653904,-447.16442403,0.0002,2]
[329387133,1718310653914,-17082.0,0.0002,2]
[329387134,1718310653926,-151.0,0.0002,2]
[329387135,1718310653952,-151.0,0.0002,2]
[329387136,1718310653962,-151.0,0.0002,2]
[329387137,1718310653974,-151.0,0.0002,2]
[329387138,1718310653986,-160.67769339,0.0002,2]
[329387139,1718310653996,-151.0,0.0002,2]
[329387140,1718310654009,-285.037062,0.0002,2]
[329387141,1718310654026,-151.0,0.0002,2]
[329387142,1718310654036,-151.0,0.0002,2]
[329387143,1718310654050,-188.837234,0.0002,2]
[329387144,1718310654068,-151.0,0.0002,2]
[329387145,1718310654080,-151.0,0.0002,2]
[329387146,1718310654096,-151.0,0.0002,2]
[329387147,1718310654125,-160.072207,0.0002,2]
[329387148,1718310654159,-15718.63355386,0.0002,2]
[329387149,1718310654171,-151.0,0.0002,2]
[329387150,1718310654182,-151.0,0.0002,2]
[329387151,1718310654193,-151.0,0.0002,2]
[329387152,1718310654204,-151.0,0.0002,2]
[329387153,1718310654216,-151.0,0.0002,2]
[329387154,1718310654237,-151.0,0.0002,2]
[329387155,1718310654256,-1931.5575,0.0002,2]
[329387156,1718310654277,-164.167133,0.0002,2]
[329387157,1718310654295,-151.0,0.0002,2]
[329387158,1718310654309,-151.0,0.0002,2]
[329387159,1718310654328,-151.0,0.0002,2]
[329387160,1718310654345,-151.0,0.0002,2]
[329387161,1718310654355,-151.0,0.0002,2]
[329387162,1718310654376,-151.0,0.0002,2]
[329387163,1718310654387,-151.0,0.0002,2]
[329387164,1718310654398,-151.0,0.0002,2]
[329387165,1718310654421,-151.0,0.0002,2]
[329387166,1718310654432,-151.0,0.0002,2]
[329387167,1718310654448,-151.0,0.0002,2]
[329387168,1718310654462,-151.0,0.0002,2]
[329387169,1718310654481,-180.963327,0.0002,2]
[329387170,1718310654491,-180.963327,0.0002,2]
[329387171,1718310654503,-151.0,0.0002,2]
[329387172,1718310654519,-160.077414,0.0002,2]
[329387173,1718310654539,-151.0,0.0002,2]
[329387174,1718310654552,-151.0,0.0002,2]
[329387175,1718310654573,-151.0,0.0002,2]
[329387176,1718310654585,-151.0,0.0002,2]
[329387177,1718310654604,-151.0,0.0002,2]
[329387178,1718310654616,-151.0,0.0002,2]
[329387179,1718310654628,-164.061106,0.0002,2]
[329387180,1718310654638,-151.0,0.0002,2]
[329387181,1718310654650,-164.008862,0.0002,2]
[329387182,1718310654662,-150.0,0.0002,2]
[329387183,1718310654674,-151.0,0.0002,2]
[329387184,1718310654703,-206.855035,0.0002,2]
[329387185,1718310654721,-151.0,0.0002,2]
[329387186,1718310654733,-150.0,0.0002,2]
[329387187,1718310654752,-1000.0,0.0002,2]
[329387188,1718310654771,-152.151883,0.0002,2]
[329387189,1718310654782,-364.60959321,0.0002,2]
[329387190,1718310654793,-364.60959321,0.0002,2]
[329387191,1718310654804,-364.60959321,0.0002,2]
[329387192,1718310654823,-192.55963208,0.0002,2]
[329387193,1718310654835,-226.76270483,0.000201,2]
[329387194,1718310654846,-11742.0,0.000202,3]
[329387195,1718310654857,-11742.0,0.000203,5]
[329387196,1718310654870,-1140.48017444,0.00020355,2]
[329387197,1718310654881,-150.0,0.000205,2]
[329387198,1718310654901,-171.14,0.00020548,2]
[329387199,1718310654918,-250.0,0.00020548,2]
[329387200,1718310654935,-19705.55821115,0.000207,2]
[329387201,1718310654960,-354.19134,0.000207,2]
[329387202,1718310654971,-354.19134,0.000207,2]
[329387203,1718310654992,-151.0,0.000207,2]
[329387204,1718310655010,-151.0,0.000207,2]
[329387205,1718310655036,-194.185043,0.000207,2]
[329387206,1718310655054,-151.0,0.000207,2]
[329387207,1718310655072,-151.0,0.000207,2]
[329387208,1718310655083,-194.185043,0.000207,2]
[329387209,1718310655094,-152.151883,0.00020822,2]
[329387210,1718310655107,-1000.0,0.00020904,2]
[329387211,1718310655127,-1442.02437801,0.00021,2]
[329387212,1718310655147,-1250.0,0.00021,2]
[329387213,1718310655162,-193.115357,0.00021,2]
[329387214,1718310655178,-151.0,0.00021,2]
[329387215,1718310655197,-150.0,0.00021,2]
[329387216,1718310655208,-350.0,0.00021096,2]
[329387217,1718310655220,-1101.8211374,0.00021262,2]
[329387218,1718310655234,-515.02,0.0002137,2]
[329387219,1718310655244,-150.0,0.000215,3]
[329387220,1718310655255,-152.151883,0.00021644,2]
[329387221,1718310655272,-254.07445159,0.00021644,2]
[329387222,1718310655286,-260.54,0.000217,2]
[329387223,1718310655305,-944.041,0.000217,2]
[329387224,1718310655316,-1195.0,0.000217,2]
[329387225,1718310655327,-1140.48017444,0.00021718,2]
[329387226,1718310655348,-390.59,0.00021742,2]
[329387227,1718310655359,-500.0,0.000219,2]
[329387228,1718310655371,-372.98,0.00021918,2]
[329387229,1718310655383,-250.0,0.00021918,2]
[329387230,1718310655394,-345.03,0.00021918,2]
[329387231,1718310655405,-151.940579,0.00021918,2]
[329387232,1718310655416,-150.0,0.00021918,2]
[329387233,1718310655427,-150.0,0.00021918,2]
[329387234,1718310655438,-150.0,0.00021918,2]
[329387235,1718310655451,-150.0,0.00021918,2]
[329387236,1718310655462,-704.7575962,0.00022,5]
[329387237,1718310655496,-3242.65995362,0.00022,10]
[329387238,1718310655521,-793.07098815,0.00022,2]
[329387239,1718310655533,-151.0,0.00022,7]
[329387240,1718310655544,-151.0,0.00022,7]
[329387241,1718310655565,-151.0,0.00022,7]
[329387242,1718310655577,-151.0,0.00022,7]
[329387243,1718310655612,-151.0,0.00022,7]
[329387244,1718310655624,-151.0,0.00022,7]
[329387245,1718310655636,-151.0,0.00022,7]
[329387246,1718310655662,-150.0,0.00022,3]
[329387247,1718310655675,-150.5,0.0002207,15]
[329387248,1718310655686,-150.5,0.0002208,15]
[329387249,1718310655700,-150.5,0.0002209,15]
[329387250,1718310655713,-2686.75,0.000221,2]
[329387251,1718310655725,-152.151883,0.00022466,2]
[329387252,1718310655737,-33275.2032387,0.000225,2]
[329387253,1718310655756,-150.0,0.000225,3]
[329387254,1718310655768,-155.0,0.000227,2]
[329387255,1718310655781,-264.199443,0.00022858,2]
[329387256,1718310655805,-373.68909035,0.00023,2]
[329387257,1718310655821,-30728.02351042,0.00023,2]
[329387258,1718310655833,-151.0,0.00023,7]
[329387259,1718310655847,-150.0,0.00023,3]
[329387260,1718310655865,-379.99,0.00023288,2]
[329387261,1718310655875,-380.0,0.00023288,2]
[329387262,1718310655886,-502.69,0.00023288,2]
[329387263,1718310655899,-1101.8211374,0.00023417,2]
[329387264,1718310655911,-750.0,0.00023434,2]
[329387265,1718310655922,-150.0,0.000235,3]
[329387266,1718310655949,-155.0,0.000238,2]
[329387267,1718310655968,-69789.95589492,0.0002388,2]
[329387268,1718310655979,-20231.44575236,0.00024,3]
[329387269,1718310656546,-389.63124367,0.00024,3]
[329387270,1718310656559,-2890.09039657,0.00024,3]
[329387271,1718310656667,-151.0,0.00015,2]
[329387272,1718310656678,-567.78070248,0.00024,3]
[329387274,1718311634183,-253.75460498,0.00013236,2]
[329387275,1718311634229,-392.3553303,0.00013237,2]
[329387281,1718311832964,-253.75460498,0.00012479,2]
[329387282,1718311833006,-313.51,0.0001248,2]
[329387283,1718311833018,-9072.17988929,0.00013237,2]
[329387284,1718311833055,-1135.31386899,0.00013237,2]
[329387285,1718311833191,-505.43097376,0.00013237,2]
[329387286,1718311833613,-94749.7839792,0.00013237,2]
[329387287,1718311833626,-427.5,0.00013237,2]
[329387288,1718311833640,-983.58374577,0.00013237,2]
[329387289,1718311834044,-673.93,0.00013237,2]
[329387290,1718311834090,-597.65331933,0.00013237,2]
[329387291,1718311834359,-1057.3,0.00013237,2]
[329387293,1718311834372,-446.17024212,0.00013237,2]
[329387358,1718311838819,-162166.70684,0.00013237,2]
[329387359,1718311838831,-23900.0,0.00013238,2]
[329387360,1718311838872,-500.0,0.00013238,2]
[329387361,1718311838884,-1054.03748245,0.000138,2]
[329387362,1718311838895,-219.73,0.0001389,2]
[329387363,1718311838906,-164.6598721,0.000139,2]
[329387364,1718311838918,-2500.0,0.000139,2]
[329387365,1718311838931,-595.53659676,0.00013918,2]
[329387366,1718311838951,-165.18734495,0.00013937,2]
[329387367,1718311838967,-471.45,0.0001399,3]
[329387368,1718311839001,-152.0,0.0001399,2]
[329387369,1718311839021,-18613.786799,0.00014,2]
[329387370,1718311839393,-11084.06512462,0.00014,2]
[329387371,1718311839407,-1668.02101365,0.00014,2]
[329387372,1718311839421,-1425.07455151,0.00014,2]
[329387373,1718311839793,-5635.24233459,0.00014,2]
[329387374,1718311839817,-4886.7500001,0.00014,2]
[329387375,1718311840078,-1000.0,0.00013723,2]
[329387376,1718311840092,-43484.68009478,0.00014,2]
[329387386,1718311842535,-128576.28850391,0.00014,2]
[329387387,1718311842558,-912.34002185,0.00014,2]
[329387409,1718311847730,-267338.70421666,0.00014,2]
[329387410,1718311847744,-698.23565078,0.00014,2]
[329387411,1718311847757,-735.6932,0.00014,2]
[329387412,1718311847770,-421.73,0.00014,2]
[329387413,1718311848188,-1666.42027,0.00014,2]
[329387414,1718311848203,-2198.6458976,0.00014,2]
[329387415,1718311848420,-347.91,0.00014,2]
[329387416,1718311848707,-26137.46475083,0.00014,2]
[329387417,1718311848736,-150558.47713,0.00014,2]
[329387418,1718311849784,-2765.36231611,0.00014,2]
[329387457,1718312946152,-1663.50331448,0.00011155,2]
[329387458,1718312963247,-131.32975527,0.00011155,2]
[329387459,1718312963517,-226.15545466,0.00011157,2]
[329387463,1718313033999,-4453.55193141,0.00011156,2]
[329387464,1718313034477,-2717.46216656,0.00011156,2]
[329387465,1718313034508,-339.17266296,0.00011156,2]
[329387466,1718313034543,-84.48454534,0.00011157,2]
[329387467,1718313034559,-500.0,0.00012752,2]
[329387468,1718313034577,-800.0,0.00012788,2]
[329387469,1718313034620,-250.0,0.00012809,2]
[329387470,1718313034667,-170.26,0.00012845,2]
[329387471,1718313034705,-48.77113088,0.00012895,2]
[329387472,1718313034733,-650.41886912,0.00012895,2]
[329387473,1718313034773,-250.0,0.0001293,2]
[329387474,1718313034785,-681.30857217,0.00012958,2]
[329387475,1718313034803,-254.75142783,0.00012958,2]
[329387476,1718313034844,-1123.08,0.00012958,2]
[329387477,1718313034861,-851.94,0.00013068,2]
[329387478,1718313034883,-262.96555812,0.00013237,2]
[329387479,1718313034897,-150.0,0.00013328,2]
[329387480,1718313034909,-200.0,0.00013329,2]
[329387481,1718313034921,-310.64,0.00013421,2]
[329387482,1718313034960,-300.0,0.000136,4]
[329387483,1718313034975,-409.83,0.00013699,2]
[329387484,1718313034986,-196.5,0.00013699,2]
[329387485,1718313035009,-600.0,0.000137,5]
[329387486,1718313035020,-11300.92437415,0.000138,2]
[329387487,1718313035071,-349.0,0.000138,2]
[329387488,1718313035091,-25801.19571769,0.000138,2]
[329387489,1718313035224,-170.26,0.00012956,2]
[329387490,1718313035236,-396.29211337,0.000138,2]
[329387491,1718313035258,-453.99681642,0.000138,2]
[329387492,1718313035272,-3895.68040471,0.000138,2]
[329387493,1718313035388,-170.26,0.00013068,2]
[329387494,1718313035415,-876.74,0.000138,2]
[329387495,1718313035434,-4412.78627366,0.000138,2]
[329387496,1718313035446,-241.65372634,0.000138,2]
[329387497,1718313035460,-740.58240107,0.000138,2]
[329387498,1718313035503,-17.76387259,0.000138,2]
[329387499,1718313035519,-482.77585744,0.000138,5]
[329387500,1718313035536,-417.22414256,0.000138,5]
[329387501,1718313035564,-1157.49476173,0.000138,2]
[329387503,1718313035604,-336.22,0.000138,2]
[329387506,1718313035736,-170.26,0.00013179,2]
[329387507,1718313035749,-825.61545876,0.000138,2]
[329387508,1718313035824,-170.26,0.00013291,2]
[329387510,1718313035838,-180.66977951,0.000138,2]
[329387511,1718313035868,-471.45,0.0001389,3]
[329387512,1718313035881,-219.73,0.0001389,3]
[329387513,1718313035903,-1226.57797049,0.000139,2]
[329387514,1718313035919,-8439.89297998,0.000139,2]
[329387515,1718313035934,-3361.8399999,0.000139,2]
[329387516,1718313039624,-170.26,0.00013402,2]
[329387517,1718313039645,-170.26,0.00013514,2]
[329387518,1718313039664,-244.89820824,0.000139,2]
[329387519,1718313039856,-30664.007581,0.000139,2]
[329387520,1718313039870,-332.5,0.000139,2]
[329387521,1718313039897,-626.59552359,0.000139,2]
[329387522,1718313039984,-263.8,0.000139,2]
[329387523,1718313039997,-688.5,0.000139,2]
[329387524,1718313040029,-41064.3885257,0.000139,2]
[329387525,1718313040288,-1001.6020927,0.000139,2]
[329387526,1718313040340,-3032.27951938,0.000139,2]
[329387527,1718313040453,-4771.74999926,0.000139,2]
[329387528,1718313040483,-8927.05000028,0.000139,2]
[329387529,1718313040508,-6727.47923437,0.000139,2]
[329387530,1718313040862,-466.01230619,0.000139,2]
[329387531,1718313041091,-714.662132,0.000139,2]
[329387532,1718313041361,-12475.14114531,0.000139,2]
[329387533,1718313041392,-13725.33117693,0.000139,2]
[329387587,1718313043913,-1408.02620954,0.000139,2]
[329387588,1718313043956,-380.43487415,0.000139,2]
[329387589,1718313044210,-6723.4,0.000139,2]
[329387595,1718313044495,-850.24946448,0.000139,2]
[329387596,1718313044747,-376.08080662,0.000139,2]
[329387617,1718313049122,-6835.06968544,0.000139,2]
[329387619,1718313049537,-1619.15689978,0.000139,2]
[329387620,1718313049568,-3438.6469238,0.000139,2]
[329387621,1718313049609,-278.90148228,0.000139,2]
[329387622,1718313049780,-20470.47145279,0.000139,2]
[329387624,1718313049807,-359.99158332,0.000139,2]
[329387625,1718313049872,-1253.83278851,0.000139,2]
[329387626,1718313050104,-16093.011465,0.000139,2]
[329387627,1718313050748,-1047.92122286,0.000139,2]
[329387640,1718313050972,-4193.688803,0.000139,2]
[329387662,1718313061410,-329.9388013,0.000139,2]
[329387689,1718314162256,-435.03030204,0.00011199,2]
[329387699,1718314232753,-9.77969796,0.00011199,2]
[329387700,1718314232768,-250.0,0.00013,2]
[329387701,1718314232784,-172.13,0.00013093,2]
[329387702,1718314232795,-1515.22,0.0001317,2]
[329387703,1718314232806,-183.97090556,0.0001318,2]
[329387704,1718314233090,-16.02909444,0.0001318,2]
[329387705,1718314233103,-1491.3733,0.00013352,2]
[329387706,1718314233116,-224.23,0.00013379,2]
[329387707,1718314233138,-444.81,0.00013463,2]
[329387708,1718314233167,-77.26798525,0.00013699,2]
[329387709,1718314233182,-98.51201475,0.00013699,2]
[329387710,1718314233200,-485.97,0.00013699,2]
[329387711,1718314233211,-1463.3013,0.00013699,2]
[329387712,1718314233226,-1000.0,0.00013722,2]
[329387713,1718314233237,-150.0,0.00013796,2]
[329387714,1718314233254,-150.0,0.00013796,2]
[329387715,1718314233264,-295.73718244,0.00013797,2]
[329387716,1718314233285,-631.13857946,0.00013797,2]
[329387717,1718314233296,-2061.98655625,0.00013799,2]
[329387718,1718314233318,-4205.98716292,0.00013799,2]
[329387719,1718314233421,-3655.23039409,0.00013799,2]
[329387720,1718314233444,-1312.01844978,0.00013799,2]
[329387721,1718314233636,-778.63384695,0.00013799,2]
[329387722,1718314233650,-8698.57941669,0.00013799,2]
[329387723,1718314233663,-2015.29501095,0.00013799,2]
[329387724,1718314233766,-5018.83705891,0.00013799,2]
[329387725,1718314233782,-673.43302,0.00013799,2]
[329387726,1718314233797,-4125.0000005,0.00013799,2]
[329387727,1718314234128,-3252.16784281,0.00013799,2]
[329387728,1718314234143,-747.562701,0.00013799,2]
[329387729,1718314236130,-264.00369996,0.00013799,2]
[329387733,1718314236691,-2437.14912999,0.00013799,2]
[329387734,1718314236707,-1782.00032808,0.00013799,2]
[329387735,1718314236722,-1294.94467176,0.00013799,2]
[329387736,1718314236757,-2708.4,0.00013799,2]
[329387737,1718314236785,-538.88,0.00013799,2]
[329387739,1718314239002,-25251.74613698,0.00013799,2]
[329387740,1718314239019,-436.32772885,0.00013799,2]
[329387741,1718314239242,-1216.49734255,0.00013799,2]
[329387742,1718314239272,-804.4421225,0.00013799,2]
[329387743,1718314239300,-3837.73961237,0.00013799,2]
[329387744,1718314239326,-167187.59126611,0.00013799,2]
[329387745,1718314239380,-500.0,0.00013799,2]
[329387746,1718314239424,-267.1858,0.000138,2]
[329387747,1718314239461,-172.18062891,0.000138,2]
[329387748,1718314239484,-4045.21968797,0.000138,2]
[329387749,1718314239499,-172.18062891,0.00013833,2]
[329387750,1718314239521,-172.18062891,0.00013867,2]
[329387751,1718314239568,-306.92,0.0001389,3]
[329387752,1718314239579,-238.17862197,0.00013897,2]
[329387753,1718314239594,-3198.15287891,0.00013897,2]
[329387754,1718314239624,-537.72037607,0.00013898,2]
[329387755,1718314239700,-339482.15982582,0.00013899,2]
[329387756,1718314239739,-5114.17852271,0.00013899,2]
[329387757,1718314240040,-25532.3974165,0.00013899,2]
[329387758,1718314240060,-1703.41591,0.00013899,2]
[329387759,1718314240270,-675.40068488,0.00013899,2]
[329387760,1718314240302,-670.31329616,0.00013899,2]
[329387761,1718314240567,-21970.0,0.00013899,2]
[329387762,1718314240601,-9155.66395789,0.00013899,2]
[329387763,1718314240617,-1078.0799953,0.00013899,2]
[329387764,1718314240643,-1095.36771121,0.00013899,2]
[329387765,1718314240672,-1840.7599115,0.00013899,2]
[329387767,1718314240696,-11064.29464399,0.00013899,2]
[329387769,1718314240720,-1847.439928,0.00013899,2]
[329387770,1718314240735,-7020.34704115,0.00013899,2]
[329387771,1718314240904,-22281.08576953,0.00013899,2]
[329387773,1718314240917,-344.85876463,0.00013899,2]
[329387819,1718314245036,-2969.575707,0.00013899,2]
[329387820,1718314245625,-1268.90810758,0.00013899,2]
[329387821,1718314246471,-207.48520993,0.00013889,2]
[329387822,1718314246485,-514.77869025,0.00013899,2]
[329387823,1718314246532,-2095.4278427,0.00013899,2]
[329387825,1718314246914,-10394.25069797,0.00013899,2]
[329387826,1718314246935,-1899.99999999,0.00013899,2]
[329387827,1718314246971,-3977.57470231,0.00013899,2]
[329387828,1718314246988,-1009.71667059,0.00013899,2]
[329387832,1718314247078,-1048.0,0.00013899,2]
[329387833,1718314247105,-261.2734782,0.00013899,2]
[329387834,1718314247325,-340.0090999,0.00013899,2]
[329387835,1718314247340,-953.445,0.00013899,2]
[329387836,1718314247356,-352.4611331,0.00013899,2]
[329387837,1718314247376,-906.2502467,0.00013899,2]
[329387838,1718314247420,-671.79044484,0.00013899,2]
[329387839,1718314247487,-6790.72885521,0.00013899,2]
[329387840,1718314247519,-2980.7362,0.000139,2]
[329387841,1718314247553,-19786.35336253,0.000139,2]
[329387842,1718314247582,-262.96555812,0.000139,2]
[329387843,1718314247593,-2215.69772044,0.000139,2]
[329387844,1718314247604,-570.24008722,0.000139,2]
[329387845,1718314247618,-170.01669629,0.000139,2]
[329387846,1718314247630,-1062.47162003,0.000139,2]
[329387847,1718314247647,-200.0,0.000139,2]
[329387848,1718314247665,-2287.705,0.000139,2]
[329387850,1718314247699,-172.18062891,0.000139,2]
[329387852,1718314247712,-7500.0,0.000139,2]